[Event "Early-Titled-Tuesday-Blitz-October-24-2023"]
[Site "Chess.com"]
[Date "2023.10.24"]
[Round "8"]
[White "jraosam"]
[Black "surrenderPLS"]
[Result "0-1"]
[WhiteElo "2162"]
[BlackElo "2519"]
[TimeControl "180+1"]
[EndTime "9:25:36 PDT"]
[Termination "surrenderPLS won on time"]

1. e4 {[%clk 0:03:00.9]} 1... c5 {[%clk 0:02:59.2]} 2. Nf3 {[%clk 0:03:00.7]}
2... Nc6 {[%clk 0:02:52.9]} 3. d4 {[%clk 0:03:00.7]} 3... cxd4 {[%clk
0:02:52.9]} 4. Nxd4 {[%clk 0:03:01.6]} 4... Nf6 {[%clk 0:02:53.5]} 5. Nc3 {[%clk
0:03:00.4]} 5... e5 {[%clk 0:02:53.7]} 6. Ndb5 {[%clk 0:02:59.8]} 6... d6 {[%clk
0:02:53.9]} 7. Bg5 {[%clk 0:02:59.7]} 7... a6 {[%clk 0:02:53.3]} 8. Na3 {[%clk
0:02:59.8]} 8... b5 {[%clk 0:02:53.7]} 9. Nd5 {[%clk 0:03:00.1]} 9... Be7 {[%clk
0:02:54.2]} 10. Bxf6 {[%clk 0:03:00.5]} 10... Bxf6 {[%clk 0:02:54.5]} 11. c3
{[%clk 0:03:01.2]} 11... Rb8 {[%clk 0:02:54.6]} 12. Nc2 {[%clk 0:03:01.3]} 12...
Bg5 {[%clk 0:02:54.8]} 13. Nce3 {[%clk 0:02:54.5]} 13... O-O {[%clk 0:02:54.4]}
14. h4 {[%clk 0:02:49.3]} 14... Bxe3 {[%clk 0:02:54.1]} 15. Nxe3 {[%clk
0:02:49.2]} 15... Be6 {[%clk 0:02:54]} 16. Qd2 {[%clk 0:02:41.6]} 16... Qc7
{[%clk 0:02:47]} 17. g3 {[%clk 0:02:41.2]} 17... Ne7 {[%clk 0:02:35.8]} 18. Be2
{[%clk 0:02:32.8]} 18... Rfd8 {[%clk 0:02:31.1]} 19. O-O {[%clk 0:02:27.8]}
19... d5 {[%clk 0:02:30.9]} 20. exd5 {[%clk 0:02:15.1]} 20... Nxd5 {[%clk
0:02:30.8]} 21. Nxd5 {[%clk 0:02:15]} 21... Bxd5 {[%clk 0:02:30.4]} 22. Qe3
{[%clk 0:02:13.2]} 22... f6 {[%clk 0:02:30.5]} 23. Rfd1 {[%clk 0:02:11.4]} 23...
Bb7 {[%clk 0:02:18.1]} 24. Rxd8+ {[%clk 0:01:28.1]} 24... Rxd8 {[%clk
0:02:17.8]} 25. Rd1 {[%clk 0:01:28.7]} 25... Rxd1+ {[%clk 0:02:17.8]} 26. Bxd1
{[%clk 0:01:29.1]} 26... Qc6 {[%clk 0:02:16.9]} 27. f3 {[%clk 0:01:28.3]} 27...
Kf8 {[%clk 0:02:11.9]} 28. Kf2 {[%clk 0:01:27]} 28... Ke7 {[%clk 0:02:09.7]} 29.
Bc2 {[%clk 0:01:25.9]} 29... h6 {[%clk 0:02:08]} 30. Be4 {[%clk 0:01:23.2]}
30... Qd7 {[%clk 0:02:01.2]} 31. Qc5+ {[%clk 0:01:13.4]} 31... Ke8 {[%clk
0:01:58.9]} 32. Bg6+ {[%clk 0:00:28.2]} 32... Kd8 {[%clk 0:01:58]} 33. Qf8+
{[%clk 0:00:25.4]} 33... Kc7 {[%clk 0:01:58]} 34. Ke3 {[%clk 0:00:14.7]} 34...
Kb6 {[%clk 0:01:54.9]} 35. b4 {[%clk 0:00:06.9]} 35... Qc6 {[%clk 0:01:47.9]}
36. Qd8+ {[%clk 0:00:02]} 36... Ka7 {[%clk 0:01:47.7]} 37. Be4 {[%clk
0:00:01.5]} 37... Qxc3+ {[%clk 0:01:47.5]} 38. Kf2 {[%clk 0:00:01.8]} 38... Bxe4
{[%clk 0:01:42.7]} 39. fxe4 {[%clk 0:00:02.1]} 39... Qc6 {[%clk 0:01:09.7]} 40.
Qe7+ {[%clk 0:00:01.5]} 40... Qb7 {[%clk 0:01:10.2]} 41. Qc5+ {[%clk 0:00:01.2]}
41... Qb6 {[%clk 0:01:10.5]} 42. Ke3 {[%clk 0:00:01.1]} 42... Qxc5+ {[%clk
0:01:10.1]} 43. bxc5 {[%clk 0:00:01.3]} 43... Kb7 {[%clk 0:01:11]} 44. h5 {[%clk
0:00:01.2]} 44... Kc6 {[%clk 0:01:11.9]} 45. Kf3 {[%clk 0:00:01.5]} 45... Kxc5
{[%clk 0:01:12.4]} 46. Kg4 {[%clk 0:00:02.4]} 46... a5 {[%clk 0:01:08]} 47. Kf5
{[%clk 0:00:03.3]} 47... b4 {[%clk 0:01:08.5]} 48. Kg6 {[%clk 0:00:03.6]} 48...
a4 {[%clk 0:01:08.9]} 49. Kxg7 {[%clk 0:00:03.9]} 49... b3 {[%clk 0:01:09.3]}
50. axb3 {[%clk 0:00:03.8]} 50... axb3 {[%clk 0:01:10.2]} 51. Kxh6 {[%clk
0:00:04.1]} 51... b2 {[%clk 0:01:11.1]} 52. Kg7 {[%clk 0:00:04.3]} 52... b1=Q
{[%clk 0:01:12]} 53. h6 {[%clk 0:00:04.9]} 53... Qxe4 {[%clk 0:01:12.3]} 54. h7
{[%clk 0:00:05.2]} 54... Qxh7+ {[%clk 0:01:12.7]} 55. Kxh7 {[%clk 0:00:05.6]}
55... e4 {[%clk 0:01:13.6]} 56. Kg6 {[%clk 0:00:06.1]} 56... e3 {[%clk
0:01:14.5]} 57. Kxf6 {[%clk 0:00:06.6]} 57... e2 {[%clk 0:01:15.4]} 0-1

[Event "Early-Titled-Tuesday-Blitz-October-24-2023"]
[Site "Chess.com"]
[Date "2023.10.24"]
[Round "8"]
[White "johnmez"]
[Black "Zhbugnoimt"]
[Result "0-1"]
[WhiteElo "2341"]
[BlackElo "2561"]
[TimeControl "180+1"]
[EndTime "9:25:40 PDT"]
[Termination "Zhbugnoimt won on time"]

1. d4 {[%clk 0:03:00.9]} 1... Nf6 {[%clk 0:02:58]} 2. Bf4 {[%clk 0:03:01.3]}
2... d5 {[%clk 0:02:54.2]} 3. e3 {[%clk 0:02:59.2]} 3... c5 {[%clk 0:02:54.4]}
4. c3 {[%clk 0:02:58]} 4... Nc6 {[%clk 0:02:52.6]} 5. Bd3 {[%clk 0:02:52]} 5...
Qb6 {[%clk 0:02:51.3]} 6. Qc2 {[%clk 0:02:49.1]} 6... c4 {[%clk 0:02:51]} 7. Be2
{[%clk 0:02:39.2]} 7... Bf5 {[%clk 0:02:51.5]} 8. Qc1 {[%clk 0:02:38.9]} 8... e6
{[%clk 0:02:51.4]} 9. Nf3 {[%clk 0:02:38.7]} 9... Nh5 {[%clk 0:02:47.9]} 10. Bg5
{[%clk 0:02:26.3]} 10... h6 {[%clk 0:02:47.4]} 11. Bh4 {[%clk 0:02:26.5]} 11...
g5 {[%clk 0:02:48]} 12. Bg3 {[%clk 0:02:26.8]} 12... Bg7 {[%clk 0:02:46.3]} 13.
Nbd2 {[%clk 0:02:09]} 13... Nxg3 {[%clk 0:02:42]} 14. hxg3 {[%clk 0:02:09.9]}
14... O-O {[%clk 0:02:32.7]} 15. b3 {[%clk 0:02:06.6]} 15... cxb3 {[%clk
0:02:16]} 16. axb3 {[%clk 0:02:07.5]} 16... Rac8 {[%clk 0:02:09.7]} 17. O-O
{[%clk 0:01:49.7]} 17... e5 {[%clk 0:02:03]} 18. Qb2 {[%clk 0:00:59.6]} 18...
exd4 {[%clk 0:01:39]} 19. Nxd4 {[%clk 0:01:00.5]} 19... Nxd4 {[%clk 0:01:32.1]}
20. exd4 {[%clk 0:01:01.4]} 20... Bxd4 {[%clk 0:01:19]} 21. cxd4 {[%clk
0:00:54.3]} 21... Rc2 {[%clk 0:01:19.9]} 22. Qb1 {[%clk 0:00:36.7]} 22... Rxd2
{[%clk 0:00:57.9]} 23. Qxf5 {[%clk 0:00:35.9]} 23... Rxe2 {[%clk 0:00:58.5]} 24.
Qxd5 {[%clk 0:00:35.5]} 24... Rd8 {[%clk 0:00:58.7]} 25. Qf3 {[%clk 0:00:22.6]}
25... Rb2 {[%clk 0:00:53.5]} 26. Rab1 {[%clk 0:00:20.6]} 26... Rxb1 {[%clk
0:00:48.9]} 27. Rxb1 {[%clk 0:00:21.5]} 27... Rxd4 {[%clk 0:00:49.2]} 28. Re1
{[%clk 0:00:21.8]} 28... Rd7 {[%clk 0:00:23.1]} 29. Re8+ {[%clk 0:00:20.4]}
29... Kg7 {[%clk 0:00:23.6]} 30. Qc3+ {[%clk 0:00:19]} 30... Qf6 {[%clk
0:00:23]} 31. Qc8 {[%clk 0:00:13.9]} 31... Re7 {[%clk 0:00:09.5]} 32. Rg8+
{[%clk 0:00:12.9]} 32... Kh7 {[%clk 0:00:09.8]} 33. Qd8 {[%clk 0:00:06.2]} 33...
Re1+ {[%clk 0:00:09.2]} 34. Kh2 {[%clk 0:00:06.5]} 34... Qxd8 {[%clk 0:00:09.5]}
35. Rxd8 {[%clk 0:00:07.4]} 35... Rb1 {[%clk 0:00:08.2]} 36. Rd3 {[%clk
0:00:06.7]} 36... Kg6 {[%clk 0:00:08.5]} 37. g4 {[%clk 0:00:05.2]} 37... Kf6
{[%clk 0:00:08.8]} 38. Kg3 {[%clk 0:00:05.9]} 38... Ke5 {[%clk 0:00:09.2]} 39.
Kf3 {[%clk 0:00:06.1]} 39... b5 {[%clk 0:00:08.5]} 40. Ke3 {[%clk 0:00:06.3]}
40... a5 {[%clk 0:00:08.8]} 41. Kd2 {[%clk 0:00:04.5]} 41... Rb2+ {[%clk
0:00:08.3]} 42. Ke3 {[%clk 0:00:04.1]} 42... a4 {[%clk 0:00:08.5]} 43. bxa4
{[%clk 0:00:04.2]} 43... bxa4 {[%clk 0:00:09.4]} 44. Ra3 {[%clk 0:00:03.7]}
44... Rb3+ {[%clk 0:00:09.7]} 45. Rxb3 {[%clk 0:00:04.3]} 45... axb3 {[%clk
0:00:10.6]} 46. Kd3 {[%clk 0:00:04.5]} 46... Kf4 {[%clk 0:00:11.5]} 47. f3
{[%clk 0:00:04.4]} 47... Kg3 {[%clk 0:00:12.1]} 48. Kc3 {[%clk 0:00:05.3]} 48...
Kxg2 {[%clk 0:00:12.6]} 49. Kxb3 {[%clk 0:00:04.8]} 49... Kxf3 {[%clk
0:00:13.1]} 0-1

[Event "Early-Titled-Tuesday-Blitz-October-24-2023"]
[Site "Chess.com"]
[Date "2023.10.24"]
[Round "8"]
[White "ural58"]
[Black "kidagent"]
[Result "1-0"]
[WhiteElo "2517"]
[BlackElo "2271"]
[TimeControl "180+1"]
[EndTime "9:25:47 PDT"]
[Termination "ural58 won on time"]

1. e4 {[%clk 0:02:55.4]} 1... c6 {[%clk 0:02:57.1]} 2. Nf3 {[%clk 0:02:54.3]}
2... d5 {[%clk 0:02:56.5]} 3. e5 {[%clk 0:02:54.4]} 3... Bg4 {[%clk 0:02:48.9]}
4. Be2 {[%clk 0:02:53.2]} 4... e6 {[%clk 0:02:46.4]} 5. O-O {[%clk 0:02:53]}
5... Nd7 {[%clk 0:02:44.9]} 6. d4 {[%clk 0:02:52.7]} 6... c5 {[%clk 0:02:41.4]}
7. c4 {[%clk 0:02:49.2]} 7... Ne7 {[%clk 0:02:33.8]} 8. Nbd2 {[%clk 0:02:45]}
8... Nc6 {[%clk 0:02:29.6]} 9. cxd5 {[%clk 0:02:41.5]} 9... exd5 {[%clk
0:02:29.1]} 10. h3 {[%clk 0:02:41.4]} 10... Be6 {[%clk 0:02:22.2]} 11. a4 {[%clk
0:02:17.5]} 11... Be7 {[%clk 0:02:19.6]} 12. Qb3 {[%clk 0:02:10.6]} 12... Nb4
{[%clk 0:02:04.3]} 13. a5 {[%clk 0:02:02.2]} 13... O-O {[%clk 0:01:58.2]} 14.
Rd1 {[%clk 0:01:28.5]} 14... c4 {[%clk 0:01:32.9]} 15. Qc3 {[%clk 0:01:24]}
15... b5 {[%clk 0:01:28.8]} 16. Nf1 {[%clk 0:01:21.6]} 16... Nc6 {[%clk
0:01:22.7]} 17. b3 {[%clk 0:00:51.7]} 17... b4 {[%clk 0:01:10.6]} 18. Qc2 {[%clk
0:00:50.7]} 18... Nxa5 {[%clk 0:01:08.8]} 19. bxc4 {[%clk 0:00:43.8]} 19... Rc8
{[%clk 0:00:41.2]} 20. c5 {[%clk 0:00:41.7]} 20... g6 {[%clk 0:00:40.6]} 21. Ne3
{[%clk 0:00:39.6]} 21... Nc6 {[%clk 0:00:32.8]} 22. Ba6 {[%clk 0:00:34.8]} 22...
Rb8 {[%clk 0:00:30.7]} 23. Bb2 {[%clk 0:00:34.8]} 23... f6 {[%clk 0:00:25.6]}
24. exf6 {[%clk 0:00:33.2]} 24... Bxf6 {[%clk 0:00:25.1]} 25. Qa4 {[%clk
0:00:22.3]} 25... Qc7 {[%clk 0:00:22]} 26. Bb5 {[%clk 0:00:22.1]} 26... Rbc8
{[%clk 0:00:14.5]} 27. Bxc6 {[%clk 0:00:22.1]} 27... Qxc6 {[%clk 0:00:14.3]} 28.
Qxc6 {[%clk 0:00:22.8]} 28... Rxc6 {[%clk 0:00:14.6]} 29. Rxa7 {[%clk
0:00:23.4]} 29... Nxc5 {[%clk 0:00:13.2]} 30. dxc5 {[%clk 0:00:16.7]} 30... Bxb2
{[%clk 0:00:12.2]} 31. Nxd5 {[%clk 0:00:16.2]} 31... Bxd5 {[%clk 0:00:09.3]} 32.
Rxd5 {[%clk 0:00:15.7]} 32... Rf7 {[%clk 0:00:08.3]} 33. Ra8+ {[%clk 0:00:14.9]}
33... Kg7 {[%clk 0:00:08]} 34. Rb8 {[%clk 0:00:13.6]} 34... Bc3 {[%clk
0:00:07.2]} 35. Ng5 {[%clk 0:00:10.3]} 35... Re7 {[%clk 0:00:07.4]} 36. f4
{[%clk 0:00:08.1]} 36... h6 {[%clk 0:00:07.3]} 37. Nf3 {[%clk 0:00:07.5]} 37...
Rf7 {[%clk 0:00:05.8]} 38. g3 {[%clk 0:00:07.1]} 38... g5 {[%clk 0:00:05]} 39.
Ne5 {[%clk 0:00:06.5]} 39... Bxe5 {[%clk 0:00:04.8]} 40. fxe5 {[%clk 0:00:06.7]}
40... Re7 {[%clk 0:00:04.1]} 41. Rxb4 {[%clk 0:00:06]} 41... Rec7 {[%clk
0:00:04]} 42. Rc4 {[%clk 0:00:06.2]} 42... Kf7 {[%clk 0:00:03.7]} 43. Kf2 {[%clk
0:00:06.4]} 43... Ke6 {[%clk 0:00:03.9]} 44. Rd6+ {[%clk 0:00:06.8]} 44... Rxd6
{[%clk 0:00:03.9]} 45. exd6 {[%clk 0:00:06.4]} 45... Rc6 {[%clk 0:00:01.3]} 46.
Ke3 {[%clk 0:00:06.7]} 46... Kd5 {[%clk 0:00:01.5]} 47. Rc2 {[%clk 0:00:06.7]}
1-0

[Event "Early-Titled-Tuesday-Blitz-October-24-2023"]
[Site "Chess.com"]
[Date "2023.10.24"]
[Round "8"]
[White "IljaZaragatski"]
[Black "Fh2411"]
[Result "1-0"]
[WhiteElo "2641"]
[BlackElo "2521"]
[TimeControl "180+1"]
[EndTime "9:25:49 PDT"]
[Termination "IljaZaragatski won on time"]

1. Nf3 {[%clk 0:03:00.9]} 1... d5 {[%clk 0:02:56.3]} 2. g3 {[%clk 0:03:00.6]}
2... c6 {[%clk 0:02:56.4]} 3. Bg2 {[%clk 0:02:59.7]} 3... Bf5 {[%clk 0:02:56.8]}
4. c4 {[%clk 0:02:59.5]} 4... e6 {[%clk 0:02:57.3]} 5. O-O {[%clk 0:02:57.9]}
5... Nf6 {[%clk 0:02:57.1]} 6. cxd5 {[%clk 0:02:56.1]} 6... exd5 {[%clk
0:02:56.9]} 7. d3 {[%clk 0:02:56]} 7... Be7 {[%clk 0:02:56.9]} 8. Qb3 {[%clk
0:02:55.8]} 8... Qb6 {[%clk 0:02:56.2]} 9. Qc2 {[%clk 0:02:55.8]} 9... O-O
{[%clk 0:02:55.3]} 10. Nc3 {[%clk 0:02:55.8]} 10... Bb4 {[%clk 0:02:34.4]} 11.
a3 {[%clk 0:02:46.6]} 11... Bxc3 {[%clk 0:02:34.4]} 12. Qxc3 {[%clk 0:02:45.5]}
12... Re8 {[%clk 0:02:34.6]} 13. Nd4 {[%clk 0:02:44.2]} 13... Bg4 {[%clk
0:02:27.9]} 14. e3 {[%clk 0:02:34.4]} 14... Nbd7 {[%clk 0:02:22.3]} 15. h3
{[%clk 0:02:33.6]} 15... Be6 {[%clk 0:02:20.6]} 16. b3 {[%clk 0:02:32]} 16...
Qc5 {[%clk 0:02:16.4]} 17. Bb2 {[%clk 0:02:24.9]} 17... Qxc3 {[%clk 0:02:16]}
18. Bxc3 {[%clk 0:02:25.8]} 18... a6 {[%clk 0:02:14]} 19. Rfd1 {[%clk
0:02:25.1]} 19... h6 {[%clk 0:02:10.5]} 20. f4 {[%clk 0:02:19.8]} 20... Nf8
{[%clk 0:01:54.8]} 21. Kf2 {[%clk 0:02:17.9]} 21... Bd7 {[%clk 0:01:51.8]} 22.
g4 {[%clk 0:02:15.8]} 22... Re7 {[%clk 0:01:12.5]} 23. Bf3 {[%clk 0:02:06.5]}
23... Rae8 {[%clk 0:01:08.3]} 24. Re1 {[%clk 0:02:06.8]} 24... c5 {[%clk
0:01:04.7]} 25. Nf5 {[%clk 0:02:01]} 25... Bxf5 {[%clk 0:01:02]} 26. gxf5 {[%clk
0:02:01.9]} 26... N8d7 {[%clk 0:01:02.2]} 27. b4 {[%clk 0:01:51.2]} 27... b6
{[%clk 0:00:44.9]} 28. Rab1 {[%clk 0:01:48.6]} 28... c4 {[%clk 0:00:44.5]} 29.
dxc4 {[%clk 0:01:39.8]} 29... dxc4 {[%clk 0:00:44.4]} 30. b5 {[%clk 0:01:24.1]}
30... a5 {[%clk 0:00:41.5]} 31. Bd4 {[%clk 0:01:24.3]} 31... Ne4+ {[%clk
0:00:33.8]} 32. Bxe4 {[%clk 0:01:24.4]} 32... Rxe4 {[%clk 0:00:34.7]} 33. Rbc1
{[%clk 0:01:20.7]} 33... Rc8 {[%clk 0:00:33.4]} 34. Rc3 {[%clk 0:01:12.5]} 34...
Nc5 {[%clk 0:00:27.6]} 35. Kf3 {[%clk 0:01:11.4]} 35... Rxd4 {[%clk 0:00:12]}
36. exd4 {[%clk 0:01:11.3]} 36... Na4 {[%clk 0:00:12.7]} 37. Rc2 {[%clk
0:01:09.9]} 37... c3 {[%clk 0:00:13.3]} 38. Re3 {[%clk 0:00:53]} 38... Kf8
{[%clk 0:00:12.7]} 39. f6 {[%clk 0:00:48.1]} 39... gxf6 {[%clk 0:00:12.1]} 40.
Ke4 {[%clk 0:00:48.6]} 40... Rd8 {[%clk 0:00:10.3]} 41. d5 {[%clk 0:00:43.7]}
41... Ke7 {[%clk 0:00:02.9]} 42. Kf5+ {[%clk 0:00:42.9]} 42... Kd6 {[%clk
0:00:03.6]} 43. Kxf6 {[%clk 0:00:43.3]} 43... Rd7 {[%clk 0:00:02.6]} 44. f5
{[%clk 0:00:36.8]} 44... Rc7 {[%clk 0:00:02.9]} 45. Rd3 {[%clk 0:00:34.2]} 45...
Rc5 {[%clk 0:00:03.3]} 46. Kxf7 {[%clk 0:00:33.5]} 46... Rxd5 {[%clk 0:00:03.5]}
47. Rxd5+ {[%clk 0:00:33.3]} 47... Kxd5 {[%clk 0:00:04.4]} 48. f6 {[%clk
0:00:33.9]} 48... Kd4 {[%clk 0:00:04.9]} 49. Ke7 {[%clk 0:00:32.1]} 49... Kd3
{[%clk 0:00:02.5]} 50. Rxc3+ {[%clk 0:00:26.6]} 50... Nxc3 {[%clk 0:00:03.4]}
51. f7 {[%clk 0:00:27.1]} 51... Nd5+ {[%clk 0:00:03.7]} 52. Kd6 {[%clk
0:00:22.7]} 1-0

[Event "Early-Titled-Tuesday-Blitz-October-24-2023"]
[Site "Chess.com"]
[Date "2023.10.24"]
[Round "8"]
[White "Kotofeyca"]
[Black "Larina_Maria"]
[Result "1-0"]
[WhiteElo "2397"]
[BlackElo "2229"]
[TimeControl "180+1"]
[EndTime "9:25:49 PDT"]
[Termination "Kotofeyca won by checkmate"]

1. d4 {[%clk 0:02:59.6]} 1... f5 {[%clk 0:02:59.7]} 2. g3 {[%clk 0:02:56.8]}
2... Nf6 {[%clk 0:02:56.9]} 3. Bg2 {[%clk 0:02:57]} 3... g6 {[%clk 0:02:56.3]}
4. Nd2 {[%clk 0:02:56.9]} 4... Bg7 {[%clk 0:02:57]} 5. e4 {[%clk 0:02:57.2]}
5... fxe4 {[%clk 0:02:57.5]} 6. Nxe4 {[%clk 0:02:57.9]} 6... Nxe4 {[%clk
0:02:57]} 7. Bxe4 {[%clk 0:02:58.8]} 7... d5 {[%clk 0:02:57.6]} 8. Bg2 {[%clk
0:02:52.5]} 8... O-O {[%clk 0:02:56.2]} 9. f4 {[%clk 0:02:52.5]} 9... c5 {[%clk
0:02:42.6]} 10. dxc5 {[%clk 0:02:43.6]} 10... e6 {[%clk 0:02:42.6]} 11. c3
{[%clk 0:02:36.7]} 11... Na6 {[%clk 0:02:28.2]} 12. Be3 {[%clk 0:02:34.6]} 12...
Qc7 {[%clk 0:02:25]} 13. Bd4 {[%clk 0:02:13.9]} 13... Nxc5 {[%clk 0:02:18.3]}
14. Bxg7 {[%clk 0:02:12]} 14... Qxg7 {[%clk 0:02:04.5]} 15. Nf3 {[%clk
0:02:04.9]} 15... Bd7 {[%clk 0:01:40.8]} 16. O-O {[%clk 0:01:56.8]} 16... Bc6
{[%clk 0:01:37.4]} 17. Re1 {[%clk 0:01:43.1]} 17... Rae8 {[%clk 0:01:35.4]} 18.
Qd4 {[%clk 0:01:36]} 18... Qxd4+ {[%clk 0:01:15.9]} 19. Nxd4 {[%clk 0:01:30.9]}
19... Kf7 {[%clk 0:00:54.8]} 20. Re3 {[%clk 0:01:28.2]} 20... Re7 {[%clk
0:00:52.6]} 21. Rae1 {[%clk 0:01:28.1]} 21... Rfe8 {[%clk 0:00:52.6]} 22. Bh3
{[%clk 0:01:00.2]} 22... Bd7 {[%clk 0:00:52.3]} 23. Nf3 {[%clk 0:00:52.5]} 23...
Kf6 {[%clk 0:00:48.3]} 24. Ne5 {[%clk 0:00:39.4]} 24... Ne4 {[%clk 0:00:44.3]}
25. Bg2 {[%clk 0:00:36.3]} 25... Nc5 {[%clk 0:00:40]} 26. g4 {[%clk 0:00:25.3]}
26... h6 {[%clk 0:00:38.2]} 27. h4 {[%clk 0:00:25.1]} 27... Bc8 {[%clk
0:00:32.9]} 28. Kf2 {[%clk 0:00:25.1]} 28... b6 {[%clk 0:00:31.4]} 29. Kg3
{[%clk 0:00:25.5]} 29... Ba6 {[%clk 0:00:28.3]} 30. Bf3 {[%clk 0:00:23.4]} 30...
Bc4 {[%clk 0:00:20.6]} 31. b3 {[%clk 0:00:20.1]} 31... Bb5 {[%clk 0:00:19.9]}
32. g5+ {[%clk 0:00:21]} 32... hxg5 {[%clk 0:00:18.9]} 33. hxg5+ {[%clk
0:00:21.9]} 33... Kg7 {[%clk 0:00:19.3]} 34. Bg4 {[%clk 0:00:21.7]} 34... Ne4+
{[%clk 0:00:17.9]} 35. Kg2 {[%clk 0:00:21]} 35... Ba6 {[%clk 0:00:17.2]} 36. Bf3
{[%clk 0:00:20.8]} 36... Bb7 {[%clk 0:00:16.7]} 37. Bxe4 {[%clk 0:00:20.2]}
37... dxe4 {[%clk 0:00:17.6]} 38. Rd1 {[%clk 0:00:20.3]} 38... Rh8 {[%clk
0:00:16.6]} 39. Rd6 {[%clk 0:00:18.8]} 39... Rhe8 {[%clk 0:00:14.9]} 40. Ng4
{[%clk 0:00:18.7]} 40... Bd5 {[%clk 0:00:13.7]} 41. c4 {[%clk 0:00:17.8]} 41...
Bb7 {[%clk 0:00:13.4]} 42. Nf6 {[%clk 0:00:18.3]} 42... Rh8 {[%clk 0:00:12.6]}
43. Nxe4 {[%clk 0:00:17.8]} 43... Rh4 {[%clk 0:00:11.7]} 44. Kg3 {[%clk
0:00:17.7]} 44... Rh1 {[%clk 0:00:11.4]} 45. Nf6 {[%clk 0:00:17]} 45... Rg1+
{[%clk 0:00:11]} 46. Kf2 {[%clk 0:00:17.6]} 46... Ra1 {[%clk 0:00:11.3]} 47. Rh3
{[%clk 0:00:16.4]} 47... Rxa2+ {[%clk 0:00:11.2]} 48. Ke3 {[%clk 0:00:16.7]}
48... e5 {[%clk 0:00:01.7]} 49. Rh7+ {[%clk 0:00:16.1]} 49... Kf8 {[%clk
0:00:02.2]} 50. Rd8+ {[%clk 0:00:16.2]} 50... Re8 {[%clk 0:00:01.7]} 51. Rxe8#
{[%clk 0:00:16.7]} 1-0

[Event "Early-Titled-Tuesday-Blitz-October-24-2023"]
[Site "Chess.com"]
[Date "2023.10.24"]
[Round "8"]
[White "Politov_Pavel"]
[Black "Aash20"]
[Result "1-0"]
[WhiteElo "2048"]
[BlackElo "2503"]
[TimeControl "180+1"]
[EndTime "9:25:49 PDT"]
[Termination "Politov_Pavel won by resignation"]

1. d4 {[%clk 0:03:00.9]} 1... d5 {[%clk 0:02:57.3]} 2. c4 {[%clk 0:02:55.5]}
2... c6 {[%clk 0:02:56.8]} 3. Nc3 {[%clk 0:02:54.2]} 3... dxc4 {[%clk
0:02:56.3]} 4. e4 {[%clk 0:02:48.5]} 4... b5 {[%clk 0:02:56]} 5. a4 {[%clk
0:02:05.6]} 5... b4 {[%clk 0:02:52.3]} 6. Na2 {[%clk 0:02:02.5]} 6... Nf6 {[%clk
0:02:49.9]} 7. Bxc4 {[%clk 0:01:50.3]} 7... Nxe4 {[%clk 0:02:46.7]} 8. Qf3
{[%clk 0:01:41.8]} 8... Nf6 {[%clk 0:02:40.2]} 9. Nxb4 {[%clk 0:01:39]} 9...
Qxd4 {[%clk 0:02:34.9]} 10. Qb3 {[%clk 0:01:25.8]} 10... e6 {[%clk 0:02:30.3]}
11. Ne2 {[%clk 0:01:22.6]} 11... Qe4 {[%clk 0:02:24.7]} 12. O-O {[%clk
0:01:20.4]} 12... Be7 {[%clk 0:02:17.2]} 13. Ng3 {[%clk 0:01:18.1]} 13... Qg6
{[%clk 0:02:14]} 14. Bf4 {[%clk 0:01:16.5]} 14... O-O {[%clk 0:02:13]} 15. Bd3
{[%clk 0:01:13.1]} 15... Qg4 {[%clk 0:02:11.6]} 16. Ne2 {[%clk 0:01:09.2]} 16...
Nbd7 {[%clk 0:02:04.1]} 17. Nxc6 {[%clk 0:01:02.8]} 17... Bc5 {[%clk 0:01:58.4]}
18. h3 {[%clk 0:01:01.9]} 18... Qh5 {[%clk 0:01:57.3]} 19. Bg3 {[%clk
0:00:30.2]} 19... Qg5 {[%clk 0:01:42.9]} 20. Nf4 {[%clk 0:00:26.6]} 20... Kh8
{[%clk 0:01:34.6]} 21. Kh2 {[%clk 0:00:24.4]} 21... Nd5 {[%clk 0:01:27]} 22.
Nxd5 {[%clk 0:00:23.5]} 22... Qxd5 {[%clk 0:01:23.9]} 23. Qxd5 {[%clk
0:00:18.7]} 23... exd5 {[%clk 0:01:23.9]} 24. Ne5 {[%clk 0:00:18.7]} 24... Nxe5
{[%clk 0:01:23.7]} 25. Bxe5 {[%clk 0:00:19.6]} 25... Be6 {[%clk 0:01:23.5]} 26.
Rac1 {[%clk 0:00:18.3]} 26... Rac8 {[%clk 0:01:22.9]} 27. Rc2 {[%clk 0:00:16.7]}
27... Bb6 {[%clk 0:01:21.8]} 28. Rfc1 {[%clk 0:00:15.9]} 28... Rxc2 {[%clk
0:01:20.7]} 29. Rxc2 {[%clk 0:00:15.4]} 29... Kg8 {[%clk 0:01:11.6]} 30. Bd6
{[%clk 0:00:15.2]} 30... Rd8 {[%clk 0:01:10.9]} 31. Bc7 {[%clk 0:00:15]} 31...
Rc8 {[%clk 0:01:06.6]} 32. Bxb6 {[%clk 0:00:14.4]} 32... axb6 {[%clk 0:01:06.9]}
33. Rxc8+ {[%clk 0:00:13.8]} 33... Bxc8 {[%clk 0:01:07.5]} 34. Bb5 {[%clk
0:00:13.5]} 34... Kf8 {[%clk 0:01:06]} 35. Kg3 {[%clk 0:00:13.4]} 35... Ke7
{[%clk 0:01:06.3]} 36. Kf4 {[%clk 0:00:13.6]} 36... Kd6 {[%clk 0:01:05.5]} 37.
b4 {[%clk 0:00:13.2]} 37... f6 {[%clk 0:01:03]} 38. Ke3 {[%clk 0:00:12.3]} 38...
g5 {[%clk 0:01:01.6]} 39. Kd4 {[%clk 0:00:11.1]} 39... Bf5 {[%clk 0:01:00.7]}
40. a5 {[%clk 0:00:10.1]} 40... bxa5 {[%clk 0:01:00]} 41. bxa5 {[%clk 0:00:11]}
41... Bc8 {[%clk 0:00:59.4]} 42. a6 {[%clk 0:00:10.5]} 42... h6 {[%clk
0:00:58.3]} 43. f3 {[%clk 0:00:09.9]} 43... f5 {[%clk 0:00:55.9]} 44. Bd3 {[%clk
0:00:07]} 44... f4 {[%clk 0:00:53.8]} 45. Bb5 {[%clk 0:00:06.3]} 45... h5 {[%clk
0:00:52.7]} 46. Bd3 {[%clk 0:00:05.3]} 46... Kc6 {[%clk 0:00:51.3]} 47. Ke5
{[%clk 0:00:04.3]} 47... Kb6 {[%clk 0:00:49.6]} 48. Kxd5 {[%clk 0:00:03.7]}
48... Bxa6 {[%clk 0:00:49]} 49. Bxa6 {[%clk 0:00:03.9]} 49... Kxa6 {[%clk
0:00:49.9]} 50. Ke5 {[%clk 0:00:04.4]} 50... Kb5 {[%clk 0:00:50.4]} 51. Kf5
{[%clk 0:00:04.7]} 51... Kc4 {[%clk 0:00:51.2]} 52. Kxg5 {[%clk 0:00:05]} 52...
Kd4 {[%clk 0:00:52.1]} 53. Kxf4 {[%clk 0:00:05.8]} 53... Kd5 {[%clk 0:00:52.5]}
54. Kg5 {[%clk 0:00:06.4]} 54... Ke5 {[%clk 0:00:52.7]} 55. Kxh5 {[%clk
0:00:07.3]} 55... Kf4 {[%clk 0:00:53.1]} 56. g4 {[%clk 0:00:08]} 56... Kxf3
{[%clk 0:00:53.1]} 57. g5 {[%clk 0:00:08.3]} 57... Kg3 {[%clk 0:00:54]} 58. g6
{[%clk 0:00:08.9]} 58... Kxh3 {[%clk 0:00:54.9]} 59. g7 {[%clk 0:00:09.8]} 59...
Kg3 {[%clk 0:00:55.8]} 60. g8=Q+ {[%clk 0:00:10.5]} 60... Kf3 {[%clk 0:00:56.7]}
1-0